lending/lending_fUSD_20260104
["ID","MTS","AMOUNT","RATE_DAILY","PERIOD"]
[400387639,1767486638170,-425.78,0.00031426,2]
[400387640,1767486638180,-321.47428324,0.00031426,2]
[400387641,1767486638374,-5466.51571676,0.00031426,2]
[400387642,1767486638384,-150.99,0.00031426,2]
[400387643,1767486638394,-4179.44,0.00031426,2]
[400387644,1767486638404,-332.60791905,0.00031762,2]
[400387645,1767486638413,-177.72839952,0.00033131,2]
[400387646,1767486638423,-208.57,0.00033615,2]
[400387647,1767486638433,-1000.0,0.0003386,2]
[400387648,1767486638443,-1549.52,0.00034165,2]
[400387649,1767486638453,-3240.0,0.00034515,120]
[400387650,1767486638462,-5000.0,0.00034556,2]
[400387651,1767486638472,-215.23,0.00034602,2]
[400387652,1767486638483,-150.0,0.00034635,2]
[400387653,1767486638493,-161.3,0.00034994,2]
[400387654,1767486638503,-745.02,0.00035436,42]
[400387655,1767486638513,-500.0,0.00035606,2]
[400387656,1767486638523,-168.0,0.00035864,2]
[400387657,1767486638534,-168.0,0.0003646,2]
[400387658,1767486638544,-168.0,0.00036515,2]
[400387659,1767486638553,-168.0,0.00036763,2]
[400387660,1767486638563,-168.0,0.00037203,2]
[400387661,1767486638573,-1200.0,0.00037541,2]
[400387662,1767486638584,-913.0,0.00037541,2]
[400387663,1767486638593,-1000.0,0.00038092,2]
[400387664,1767486638604,-500.0,0.00040072,31]
[400387665,1767486638614,-176.36381402,0.00040072,31]
[400387666,1767486638624,-203.38972209,0.00040072,31]
[400387667,1767486638634,-218.41809009,0.00040072,31]
[400387668,1767486638644,-500.0,0.00040073,5]
[400387669,1767486638654,-500.0,0.00040073,5]
[400387670,1767486638667,-500.0,0.00040073,5]
[400387671,1767486638688,-522.0,0.00040214,10]
[400387672,1767486638698,-1200.0,0.00040541,2]
[400387673,1767486638708,-913.0,0.00040541,2]
[400387674,1767486638718,-663.03940033,0.00040621,5]
[400387675,1767486638729,-1000.0,0.00040621,5]
[400387676,1767486638739,-187.4732069,0.00041096,2]
[400387677,1767486638749,-1000.0,0.00041168,10]
[400387678,1767486638761,-250.0,0.00041425,30]
[400387679,1767486638779,-250.0,0.00041425,30]
[400387680,1767486638799,-215.23,0.00041522,2]
[400387681,1767486638809,-834.36,0.00041803,30]
[400387682,1767486638819,-1697.68720246,0.00041804,7]
[400387683,1767486638829,-500.0,0.00041979,20]
[400387684,1767486638838,-834.36,0.00042077,30]
[400387685,1767486638848,-300.0,0.00042082,60]
[400387686,1767486638857,-3490.3331,0.00042225,2]
[400387687,1767486638868,-195.8134,0.00042225,2]
[400387688,1767486638878,-2272.451,0.00042225,2]
[400387689,1767486638888,-1000.0,0.00042325,2]
[400387690,1767486638898,-834.36,0.00042351,30]
[400387691,1767486638908,-1995.67,0.00042411,30]
[400387692,1767486638918,-153.20738578,0.00042434,39]
[400387693,1767486638928,-834.36,0.00042625,30]
[400387694,1767486638939,-300.0,0.0004263,90]
[400387695,1767486638950,-300.0,0.0004263,90]
[400387696,1767486638960,-311.22349,0.0004267,120]
[400387697,1767486638971,-311.22349,0.0004267,120]
[400387698,1767486638982,-311.22349,0.0004267,120]
[400387699,1767486638993,-311.2235,0.0004267,120]
[400387700,1767486639004,-311.2235,0.0004267,120]
[400387701,1767486639015,-25000.0,0.00042673,15]
[400387702,1767486639027,-903.72591764,0.00042673,15]
[400387703,1767486639038,-500.0,0.00042799,120]
[400387704,1767486639048,-150.0,0.00042799,60]
[400387705,1767486639059,-150.0,0.00042799,60]
[400387706,1767486639069,-150.0,0.00042799,60]
[400387707,1767486639079,-500.0,0.00042799,60]
[400387708,1767486639089,-159.00171244,0.00042799,60]
[400387709,1767486639098,-2999.0,0.000428,120]
[400387710,1767486639108,-159.07185695,0.0004286,40]
[400387711,1767486639118,-2500.0,0.00042873,2]
[400387712,1767486639128,-2083.877,0.00042885,3]
[400387713,1767486639138,-834.36,0.00042899,30]
[400387714,1767486639148,-4551.78207652,0.000429,2]
[400387715,1767486639158,-215.23842778,0.000429,9]
[400387716,1767486639168,-593.02976021,0.000429,15]
[400387717,1767486639179,-449.50177742,0.000429,28]
[400387718,1767486639188,-593.02976016,0.00042911,15]
[400387719,1767486639198,-593.02976016,0.00042922,15]
[400387720,1767486639207,-449.50177741,0.00042931,28]
[400387721,1767486639218,-593.02976016,0.00042933,15]
[400387722,1767486639227,-500.0,0.00042936,120]
[400387723,1767486639237,-150.0,0.00042936,60]
[400387724,1767486639247,-500.0,0.00042936,60]
[400387725,1767486639257,-1000.0,0.0004294,14]
[400387726,1767486639267,-593.02976016,0.00042944,15]
[400387727,1767486639277,-150.0,0.00042947,14]
[400387728,1767486639287,-593.02976016,0.00042956,15]
[400387729,1767486639297,-449.50177741,0.00042961,28]
[400387730,1767486639307,-593.02976016,0.00042967,15]
[400387731,1767486639317,-500.0,0.00042973,10]
[400387732,1767486639326,-500.0,0.00042973,10]
[400387733,1767486639336,-500.0,0.00042973,10]
[400387735,1767486639346,-504.99089557,0.00042973,10]
[400387736,1767486639356,-500.0,0.00042973,10]
[400387737,1767486639365,-500.95378583,0.00042973,10]
[400387738,1767486639375,-500.77289104,0.00042973,10]
[400387739,1767486639385,-500.70033912,0.00042973,10]
[400387740,1767486639395,-501.10419373,0.00042973,10]
[400387741,1767486639405,-500.0,0.00042973,10]
[400387743,1767486639416,-578.09055034,0.00042973,10]
[400387745,1767486639426,-591.26381355,0.00042973,10]
[400387747,1767486639435,-334.16885186,0.00042973,10]
[400387748,1767486639445,-500.69794678,0.00042973,10]
[400387749,1767486639455,-500.16369206,0.00042973,10]
[400387750,1767486639465,-500.0,0.00042973,10]
[400387751,1767486639475,-168.77146758,0.00042973,10]
[400387752,1767486639485,-500.20057345,0.00042973,10]
[400387753,1767486639495,-500.0,0.00042973,10]
[400387754,1767486639505,-500.0,0.00042973,10]
[400387755,1767486639514,-207.02482082,0.00042973,10]
[400387756,1767486639524,-500.0,0.00042973,10]
[400387757,1767486639533,-605.30162906,0.00042973,10]
[400387758,1767486639543,-550.88547457,0.00042973,10]
[400387759,1767486639553,-500.8964132,0.00042973,10]
[400387760,1767486639563,-500.0,0.00042973,10]
[400387761,1767486639572,-500.0,0.00042973,10]
[400387762,1767486639581,-457.40656178,0.00042973,10]
[400387763,1767486639591,-500.0,0.00042973,10]
[400387764,1767486639601,-160.89437203,0.00042973,10]
[400387765,1767486639610,-331.41117017,0.00042973,10]
[400387766,1767486639620,-500.0,0.00042973,10]
[400387767,1767486639630,-500.0,0.00042973,10]
[400387768,1767486639640,-593.02976016,0.00042978,15]
[400387769,1767486639650,-1000.0,0.00042984,14]
[400387770,1767486639660,-207.96751986,0.00042986,30]
[400387771,1767486639670,-272.26125087,0.00042986,30]
[400387772,1767486639680,-259.93363294,0.00042986,30]
[400387773,1767486639690,-179.57022434,0.00042986,30]
[400387774,1767486639700,-235.26019139,0.00042986,30]
[400387775,1767486639710,-298.88534118,0.00042986,30]
[400387776,1767486639720,-241.25297959,0.00042986,30]
[400387777,1767486639732,-257.2432433,0.00042986,30]
[400387778,1767486639743,-192.44459879,0.00042986,30]
[400387779,1767486639757,-265.85351382,0.00042986,30]
[400387780,1767486639769,-205.68829381,0.00042986,30]
[400387781,1767486639779,-234.49230353,0.00042986,30]
[400387782,1767486639789,-178.37939539,0.00042986,30]
[400387783,1767486639800,-161.44411926,0.00042986,30]
[400387784,1767486639811,-248.88387839,0.00042986,30]
[400387785,1767486639822,-593.02976016,0.00042989,15]
[400387786,1767486639831,-1592.0,0.00043,7]
[400387787,1767486639841,-33545.9207,0.00043,2]
[400387788,1767486639851,-6606.6939957,0.00043,2]
[400387789,1767486639873,-628.33816839,0.00036467,2]
[400387790,1767486639989,-2468.52183161,0.00036467,2]
[400387791,1767486639999,-358787.9151397,0.00043,2]
[400387792,1767486640010,-320.80564374,0.00043,2]
[400387793,1767486640026,-394.5039824,0.00043,2]
[400387794,1767486640038,-997.77929431,0.00043,2]
[400387795,1767486640053,-858.67045742,0.00043,2]
[400387796,1767486640066,-2741.65957838,0.00043,2]
[400387797,1767486640077,-812.2376,0.00043,2]
[400387808,1767486643562,-449.50177741,0.00042992,28]
[400387809,1767486643573,-374.36990935,0.00043,2]
[400387810,1767486644828,-160.98012003,0.00043,2]
[400387811,1767486645029,-3055.3351247,0.00043,2]
[400387812,1767486645044,-22444.64521058,0.00043,2]
[400387813,1767486645056,-5580.12409385,0.00043,2]
[400387814,1767486645110,-64.00687772,0.00043,2]
[400387815,1767486645122,-1821.34280343,0.00043,2]
[400387817,1767486645564,-24268.6613173,0.00043,2]
[400387818,1767486645588,-337.10586072,0.00043,2]
[400387819,1767486645600,-311.95472696,0.00043,2]
[400387820,1767486645693,-986.79100016,0.00043,2]
[400387886,1767486887685,9490.0,0.00018,2]
[400387887,1767487028291,195.0,0.00031882,120]
[400387888,1767487071500,386.32,0.00013699,2]
[400387889,1767487130773,523.97269106,0.00043214,120]
[400387890,1767487536148,-327.0,0.00020187,2]
[400387891,1767487536171,-250.0,0.00020187,2]
[400387892,1767487536194,-386.32,0.00020187,2]
[400387893,1767487536215,-250.0,0.00022206,2]
[400387894,1767487536237,-300.0,0.00022206,2]
[400387895,1767487536261,-198.35853654,0.00022206,2]
[400387896,1767487536283,-340.61795982,0.00024714,2]
[400387897,1767487652113,-39.30663485,0.00024714,2]
[400387898,1767487652135,-250.0,0.00025695,2]
[400387899,1767487652157,-386.32,0.00026676,2]
[400387900,1767487652178,-250.0,0.00027186,2]
[400387901,1767487652199,-105.60290643,0.00027832,2]
[400387904,1767487753081,-151.0,0.000282,2]
[400387905,1767487753101,-151.0,0.000282,2]
[400387906,1767487753122,-151.0,0.00028227,2]
[400387907,1767487753143,-151.0,0.00028227,2]
[400387908,1767487753164,-151.0,0.00028408,2]
[400387909,1767487753186,-151.0,0.00028408,2]
[400387910,1767487753219,-250.0,0.00028699,2]
[400387911,1767487754102,-250.0,0.00030958,2]
[400387912,1767487754124,-168.41,0.00031263,2]
[400387913,1767487754146,-250.0,0.00031558,2]
[400387914,1767487763924,151.0,0.00029196,2]
[400387915,1767487764835,151.0,0.00029196,2]
[400387916,1767487780070,151.0,0.00029093,2]
[400387917,1767487781025,151.0,0.00029093,2]
[400387918,1767487796506,151.0,0.00029093,2]
[400387919,1767487797251,151.0,0.00029093,2]
[400387920,1767487813424,151.0,0.00028579,2]
[400387921,1767487813662,151.0,0.00028579,2]
[400387922,1767487829824,151.0,0.00028579,2]
[400387923,1767487829996,151.0,0.00028579,2]
[400387931,1767487831596,-257.87596969,0.00032967,2]
[400387932,1767487831646,-242.12403031,0.00032967,2]
[400387933,1767487831658,-293.34963179,0.00032967,2]
[400387934,1767487831668,-70.23893361,0.00033066,2]
[400387935,1767487831682,-179.76106639,0.00033066,2]
[400387936,1767487831692,-269.90507535,0.00033165,2]
[400387937,1767487831704,-116.41492465,0.00033165,2]
[400387938,1767487831715,-171.17507535,0.00036124,2]
[400387939,1767487831731,-53.72409065,0.00036124,2]
[400387940,1767487831743,-250.0,0.00036264,2]
[400387941,1767487831753,-593.8730823,0.00036306,2]
[400387942,1767487831765,-729.51283028,0.00036306,2]
[400387943,1767487831777,-259.39015822,0.00036306,2]
[400387944,1767487831809,-1156.93816406,0.00036306,2]
[400387945,1767487831821,-1168.18354245,0.00036306,2]
[400387988,1767487837672,-807.44222269,0.00036306,2]
[400387989,1767487837682,-101.03929079,0.00037477,78]
[400387990,1767487837694,-83.27451326,0.00037477,78]
[400387991,1767487837709,-346.0,0.00037576,3]
[400387993,1767487837718,-145.18191471,0.00037576,3]
[400387995,1767487837731,-1436.31215176,0.00037576,3]
[400387997,1767487837742,-18.50593353,0.00037576,3]
[400387998,1767487837752,-400.0,0.00037577,3]
[400387999,1767487837762,-100.03886157,0.00037578,2]
[400388010,1767487839937,-301.75178876,0.00037578,2]
[400388011,1767487839950,-455.295,0.00037578,2]
[400388012,1767487839962,-508.335,0.00037578,2]
[400388013,1767487839974,-380.9790429,0.00037578,2]
[400388014,1767487840095,-8253.59030677,0.00037578,2]
[400388015,1767487840109,-1402.85,0.00037578,2]
[400388016,1767487840119,-166.66,0.00037668,30]
[400388017,1767487840129,-996.64360366,0.00037768,2]
[400388018,1767487840142,-1200.0,0.0003799,2]
[400388019,1767487840152,-913.0,0.0003799,2]
[400388020,1767487840162,-250.0,0.00038,45]
[400388021,1767487840174,-250.0,0.00038,45]
[400388022,1767487840184,-250.0,0.000381,45]
[400388023,1767487840194,-250.0,0.000381,45]
[400388024,1767487840204,-250.0,0.000381,45]
[400388025,1767487840214,-166.66,0.00038461,30]
[400388026,1767487840224,-150.0,0.00038935,2]
[400388027,1767487840234,-1149.56,0.00039045,2]
[400388028,1767487840244,-365.51067399,0.00039165,2]
[400388029,1767487840254,-166.66,0.00039254,30]
[400388030,1767487840264,-386.32,0.00039654,2]
[400388031,1767487840274,-308.02,0.00039859,120]
[400388032,1767487840283,-950.0,0.00039999,4]
[400388033,1767487840293,-250.0,0.0004,45]
[400388034,1767487840303,-250.0,0.0004,45]
[400388035,1767487840313,-250.0,0.0004,45]
[400388036,1767487840324,-250.0,0.0004,45]
[400388037,1767487840338,-250.0,0.0004,45]
[400388038,1767487840349,-250.0,0.0004,45]
[400388039,1767487840359,-250.0,0.0004,45]
[400388040,1767487840368,-250.0,0.0004,45]
[400388041,1767487840379,-166.66,0.00040047,30]
[400388042,1767487840388,-321.0804,0.00040073,5]
[400388043,1767487840398,-785.365,0.00040073,56]
[400388044,1767487840622,-560.0,0.00040184,5]
[400388045,1767487840645,-522.0,0.0004021,10]
[400388046,1767487840656,-200.0,0.00040272,2]
[400388047,1767487840667,-1951.0,0.00040336,5]
[400388048,1767487840677,-2790.79714923,0.00040713,2]
[400388049,1767487840687,-166.66,0.0004084,30]
[400388050,1767487840697,-200.0,0.00040874,2]
[400388051,1767487840707,-1200.0,0.0004099,2]
[400388052,1767487840717,-913.0,0.0004099,2]
[400388053,1767487840727,-250.0,0.00041,45]
[400388054,1767487840738,-174.35654873,0.00041,45]
[400388055,1767487840749,-250.0,0.00041,45]
[400388056,1767487840759,-250.0,0.00041,45]
[400388057,1767487840769,-500.0,0.00041,45]
[400388058,1767487840781,-181.32710412,0.00041096,2]
[400388059,1767487840791,-500.0,0.00041274,45]
[400388060,1767487840800,-604.56415314,0.00041503,31]
[400388061,1767487840810,-19734.8364,0.00041504,2]
[400388062,1767487840820,-6699.2591,0.00041504,2]
[400388063,1767487840834,-236.2929,0.00041504,2]
[400388064,1767487840844,-2500.0,0.00041504,2]
[400388065,1767487840856,-184.31380404,0.00041533,88]
[400388066,1767487840866,-154.93216666,0.00041533,30]
[400388067,1767487840875,-215.23842778,0.00041533,3]
[400388068,1767487840885,-500.0,0.00041548,45]
[400388069,1767487840895,-502.89266306,0.00041603,31]
[400388070,1767487840905,-210.93810207,0.00041603,31]
[400388071,1767487840914,-1203.0,0.00041604,7]
[400388072,1767487840924,-82378.63427594,0.00041604,30]
[400388073,1767487840934,-1008.95597862,0.00041604,15]
[400388074,1767487840944,-197.67658672,0.00041604,15]
[400388075,1767487840954,-224.75088874,0.00041604,28]
[400388076,1767487840963,-20962.57596445,0.00041604,2]
[400388077,1767487840976,-10185.87604076,0.00041604,2]
[400388078,1767487840988,-3112.20531399,0.00041604,2]
[400388080,1767487843306,-353.1863629,0.00041604,2]
[400388081,1767487843317,-600.930018,0.00041604,2]
[400388082,1767487843411,-298.0,0.00041604,2]
[400388083,1767487844203,-271.46602208,0.00041604,2]
[400388084,1767487844215,-276.29565446,0.00041604,2]
[400388085,1767487844228,-745.41795146,0.00041604,2]
[400388088,1767487845682,-241829.69868304,0.00041604,2]
[400388089,1767487846255,151.0,0.00030852,2]
[400388090,1767487846399,151.0,0.00030852,2]
[400388091,1767487862444,151.0,0.0003117,2]
[400388092,1767487862591,151.0,0.0003117,2]
[400388093,1767487878859,151.0,0.00031153,2]
[400388094,1767487879515,151.0,0.00031153,2]
[400388095,1767487895708,151.0,0.00030465,2]
[400388096,1767487896172,151.0,0.00030465,2]
[400388101,1767487912131,151.0,0.0003164,2]
[400388102,1767487912403,151.0,0.0003164,2]
[400388103,1767487928311,151.0,0.00031623,2]
[400388104,1767487928580,151.0,0.00031623,2]
[400388109,1767488428138,155.86546855,0.0004321,60]
[400388112,1767488606442,384.68865087,0.0004321,120]
[400388114,1767488759154,-248.07,0.00019603,2]
[400388115,1767488759181,-248.07,0.00020635,2]
[400388116,1767488759203,-248.07,0.00021667,2]
[400388117,1767488759225,-248.07,0.00022698,2]
[400388118,1767488759248,-248.07,0.0002373,2]
[400388119,1767488759269,-151.0,0.00024441,2]
[400388120,1767488759290,-151.0,0.00024441,2]
[400388121,1767488759313,-114.54868593,0.00024762,2]
[400388123,1767488803204,-133.52131407,0.00024762,2]
[400388124,1767488803436,-248.07,0.00025794,2]
[400388125,1767488803459,-151.0,0.00026038,2]
[400388126,1767488803480,-151.0,0.00026038,2]
[400388127,1767488803502,-248.07,0.00026825,2]
[400388128,1767488803522,-151.0,0.00027644,2]
[400388129,1767488803543,-151.0,0.00027644,2]
[400388130,1767488803565,-248.07,0.00027857,2]
[400388131,1767488803587,-248.07,0.00028889,2]
[400388132,1767488803607,-334.4536307,0.00029819,2]
[400388133,1767488803630,-248.07,0.00029921,2]
[400388134,1767488803652,-248.07,0.00030952,2]
[400388135,1767488803673,-248.07,0.00031984,2]
[400388136,1767488803693,-293.21933829,0.00032658,2]
[400388137,1767488803714,-248.07,0.00033016,2]
[400388138,1767488803734,-175.74622755,0.00034048,2]
[400388139,1767488834114,-151.0,0.00027123,2]
[400388140,1767488834136,-151.0,0.00027123,2]
[400388141,1767488834158,-151.0,0.00028945,2]
[400388142,1767488834179,-151.0,0.00028945,2]
[400388143,1767488834201,-72.32377245,0.00034048,2]
[400388144,1767488834224,-248.07,0.00035079,2]
[400388145,1767488834245,-248.07,0.00036111,2]
[400388146,1767488834266,-248.07,0.00037143,2]
[400388147,1767488834288,-161.57536379,0.0003779,2]
[400388148,1767488834308,-399.83123466,0.0003788,4]
[400388149,1767488834329,-528.07704251,0.00037888,3]
[400388150,1767488835092,-671.92295749,0.00037888,3]
[400388151,1767488835114,-400.0,0.00037888,2]
[400388152,1767488835135,-581.27219683,0.00037889,15]
[400388153,1767488835154,-195.65237908,0.00037889,15]
[400388154,1767488835181,-500.0,0.00037889,15]
[400388155,1767488835205,-500.0,0.00037889,15]
[400388156,1767488835235,-500.0,0.00037889,15]
[400388157,1767488835263,-500.0,0.00037889,15]
[400388158,1767488835288,-500.0,0.00037889,15]
[400388159,1767488835313,-500.0,0.00037889,15]
[400388160,1767488835339,-387.31168025,0.00037889,15]
[400388161,1767488835364,-500.0,0.00037889,15]
[400388162,1767488835389,-500.0,0.00037889,15]
[400388163,1767488835414,-500.0,0.00037889,15]
[400388164,1767488835440,-500.0,0.00037889,15]
[400388165,1767488835466,-500.0,0.00037889,15]
[400388166,1767488835487,-513.0,0.0003789,5]
[400388167,1767488835509,-628.292,0.0003789,49]
[400388168,1767488835530,-1040.72325318,0.0003789,2]
[400388169,1767488835556,-342.73303355,0.0003789,2]
[400388170,1767489031768,-151.0,0.00028247,2]
[400388171,1767489031778,-151.0,0.00028247,2]
[400388172,1767489031788,-300.0,0.00028576,2]
[400388173,1767489031799,-174.15703811,0.00031363,2]
[400388174,1767489031810,-125.84296189,0.00031363,2]
[400388175,1767489031820,-174.14703811,0.00032345,2]
[400388176,1767489031832,-125.85296189,0.00032345,2]
[400388177,1767489031842,-300.0,0.00032345,2]
[400388178,1767489031852,-287.0,0.00035297,2]
[400388179,1767489031862,-122.12399471,0.00035298,2]
[400388180,1767489031873,-853.92747061,0.00035298,2]
[400388181,1767489031937,-6690.0,0.00035298,2]
[400388210,1767489037894,-151.0,0.00028658,2]
[400388211,1767489037904,-871.34999,0.00035298,2]
[400388212,1767489037953,-151.0,0.00028658,2]
[400388213,1767489037971,-812.02821688,0.00035298,2]
[400388214,1767489038052,-470.0,0.00035298,2]
[400388215,1767489038065,-407.59431034,0.00035298,2]
[400388216,1767489038078,-480.96,0.00035298,2]
[400388217,1767489038091,-764.11394023,0.00035298,2]
[400388222,1767489038373,-7705.97632803,0.00035298,2]
[400388223,1767489038383,-196.65702763,0.0003779,2]
[400388224,1767489038393,-161.57536375,0.0003779,2]
[400388225,1767489038403,-936.65092788,0.0003779,2]
[400388226,1767489038414,-1000.0,0.00037889,2]
[400388227,1767489038423,-406.89053778,0.00037889,15]
[400388228,1767489038433,-500.0,0.00037889,15]
[400388229,1767489038443,-500.0,0.00037889,15]
[400388230,1767489038453,-500.0,0.00037889,15]
[400388231,1767489038462,-500.0,0.00037889,15]
[400388232,1767489038472,-413.0280956,0.00037889,15]
[400388233,1767489038483,-400.34674023,0.00037889,15]
[400388234,1767489038498,-16931.74379713,0.0003789,2]
[400388235,1767489038510,-34021.59383782,0.0003789,2]
[400388240,1767489039919,-25714.92461786,0.0003789,2]
[400388241,1767489040003,-1838.05685501,0.0003789,2]
[400388242,1767489040084,-8904.92513306,0.0003789,2]
[400388243,1767489040096,-1434.6,0.0003789,2]
[400388244,1767489040141,-360.32540105,0.0003789,2]
[400388245,1767489040153,-456.66,0.0003789,2]
[400388246,1767489040165,-924.954561,0.0003789,2]
[400388247,1767489040176,-16957.25349034,0.0003789,2]
[400388248,1767489040188,-9837.44295268,0.0003789,2]
[400388249,1767489040200,-2054.98497725,0.0003789,2]
[400388250,1767489040212,-2602.99277642,0.0003789,2]
[400388252,1767489040367,-296.9,0.0003789,2]
[400388271,1767489043621,-472.90562986,0.0003789,2]
[400388272,1767489044576,-875.3,0.0003789,2]
[400388273,1767489044610,-268569.50981202,0.0003789,2]
[400388274,1767489044624,-100414.49206332,0.0003789,2]
[400388293,1767489045192,-394.54598905,0.0003789,2]
[400388294,1767489045971,-185.95785049,0.0003789,2]
[400388313,1767489092148,155.86546855,0.0004321,60]
[400388314,1767489121028,10000.0,1.1e-06,120]
[400388315,1767489147650,10000.0,1.1e-06,120]
[400388316,1767489243543,10000.0,1.1e-06,120]
[400388317,1767489394063,300.0,0.00043211,120]
[400388318,1767489394805,311.1,0.00043211,120]
[400388319,1767489395470,322.6107,0.00043211,120]
[400388320,1767489432441,228.1093,0.00043211,120]
[400388321,1767489600627,5000.0,0.00043211,120]
[400388323,1767489681501,10026.26898235,0.00043211,60]
[400388324,1767489751400,289.74,0.00013699,2]
[400388328,1767490046147,-251.00174134,0.00020187,2]
[400388333,1767490154297,-357.5133371,0.0001901,7]
[400388334,1767490154323,-38.73825866,0.00020187,2]
[400388335,1767490154361,-1868.82750158,0.000209,30]
[400388336,1767490154383,-195.0,0.00022206,2]
[400388337,1767490154406,-151.0,0.000226,2]
[400388338,1767490154455,-200.73914414,0.000226,2]
[400388339,1767490171089,-153.26085586,0.000226,2]
[400388340,1767490171111,-1200.0,0.00024999,2]
[400388341,1767490171137,-287.0,0.00024999,2]
[400388342,1767490171159,-3713.15319614,0.00025,2]
[400388343,1767490204120,186.0,0.00043211,60]
[400388344,1767490207713,812.58372969,0.00043211,120]
[400388345,1767490207756,151.40303506,0.00043211,120]
[400388346,1767490209817,197.87973681,0.00043211,120]
[400388347,1767490210333,181.94796066,0.00043211,120]
[400388348,1767490213108,405.89153028,0.00043211,120]
[400388349,1767490213483,357.80008759,0.00043211,120]
[400388350,1767490213918,156.23951245,0.00043211,120]
[400388351,1767490214836,253.6690813,0.00043211,120]
[400388352,1767490214977,162.54084585,0.00043211,120]
[400388353,1767490215200,239.72786471,0.00043211,120]
[400388354,1767490215370,157.75646157,0.00043211,120]
[400388355,1767490224126,197.81876538,0.00043211,120]
[400388356,1767490229833,220.9643367,0.00043211,120]
[400388357,1767490229894,175.02023057,0.00043211,120]
[400388358,1767490230971,233.09382641,0.00043211,120]
[400388359,1767490231875,-773.99264083,0.00025,2]
[400388367,1767490232000,-890.8106282,0.00025,2]
[400388368,1767490232013,-871.14161176,0.00025,2]
[400388369,1767490232025,-583.32,0.00025,2]
[400388370,1767490232044,-477.49208952,0.00025,2]
[400388371,1767490232055,-3685.35965901,0.00025,2]
[400388372,1767490232065,-151.0,0.00025461,2]
[400388373,1767490232075,-12.98975539,0.00025461,2]
[400388374,1767490232091,-138.01024461,0.00025461,2]
[400388375,1767490232101,-1200.0,0.00025891,2]
[400388376,1767490232111,-151.0,0.00025892,2]
[400388377,1767490232121,-151.0,0.00025892,2]
[400388378,1767490232131,-276.92497056,0.0002599,2]
[400388379,1767490232167,-321.38466144,0.0002599,2]
[400388380,1767490232178,-504.21166956,0.00026,2]
[400388392,1767490233392,158.78492488,0.00043211,120]
[400388393,1767490234196,1011.52352658,0.00043211,120]
[400388394,1767490234425,158.55755748,0.00043211,120]
[400388395,1767490234840,205.91756623,0.00043211,120]
[400388396,1767490235631,286.02947206,0.00043211,120]
[400388399,1767490238028,-163.7048066,0.00026,2]
[400388400,1767490238039,-276.0,0.00026051,2]
[400388401,1767490238049,-151.0,0.00026052,2]
[400388402,1767490238059,-151.0,0.00026052,2]
[400388403,1767490238070,-131.6851934,0.00026676,2]
[400388404,1767490238174,5109.0,0.00043211,60]
[400388405,1767490238211,-158.0548066,0.00026676,2]
[400388406,1767490238221,-1068.0,0.00028148,2]
[400388407,1767490238231,-151.0,0.0003,2]
[400388408,1767490238241,-151.0,0.00032876,11]
[400388409,1767490238251,-289.74,0.00033165,2]
[400388410,1767490238261,-153.84719515,0.00034889,7]
[400388411,1767490238271,-151.0,0.00035,7]
[400388413,1767490238281,-200.0,0.0003618,2]
[400388415,1767490238291,-517.89,0.0003657,2]
[400388417,1767490238301,-352.98,0.00036622,30]
[400388419,1767490238311,-1696.82839125,0.00036833,2]
[400388421,1767490238324,-456.2420658,0.00036833,2]